[Event "22nd Wasselonne Open 2018"]
[Site "Wasselonne"]
[Date "2018.08.05"]
[Round "7"]
[White "Mohota, Nisha"]
[Black "Msellek, Ilyass"]
[Result "1/2-1/2"]
[ECO "E73"]
[WhiteElo "2268"]
[BlackElo "2242"]
[Annotator "NA"]
[PlyCount "53"]
[EventDate "2018.08.02"]
[EventType "swiss"]
[EventCountry "FRA"]
[SourceTitle "playchess.com"]
[Source "ChessBase"]
[SourceQuality "1"]
[TimeControl "5400+30"]

1. d4 {[%emt 0:00:10]} Nf6 {[%emt 0:07:26]} 2. c4 {[%emt 0:00:16]} g6 {[%emt 0:00:03]} 3. Nc3 {[%emt 0:00:17]} Bg7 {[%emt 0:00:02]} 4. e4 {[%emt 0:00:14]} O-O {[%emt 0:00:06]} 5. Be2 {[%emt 0:02:02]} d6 {[%emt 0:00:05]} 6. Bg5 {[%emt 0:00:11]} Nbd7 {[%emt 0:05:43]} 7. Nf3 {[%emt 0:00:20]} e5 {[%emt 0:03:07]} 8. O-O {[%emt 0:00:53]} exd4 {[%emt 0:08:12]} 9. Nxd4 {[%emt 0:01:42]} Nc5 {[%emt 0:04:31]} 10. f3 {[%emt 0:01:31]} c6 {[%emt 0:05:06]} 11. Qd2 {[%emt 0:01:38]} Nfxe4 {[%emt 0:05:47]} 12. Nxe4 {[%emt 0:14:04]} Nxe4 {[%emt 0:00:34]} 13. fxe4 {[%emt 0:03:24]} Bxd4+ {[%emt 0:00:36]} 14. Kh1 {[%emt 0:36:36]} Qb6 {[%emt 0:05:25]} 15. Rad1 {[%emt 0:06:45]} Be5 {[%emt 0:06:12]} 16. b3 {[%emt 0:06:14]} Be6 {[%emt 0:08:06]} 17. Be7 {[%emt 0:01:15]} Rfe8 {[%emt 0:02:29]} 18. Bxd6 {[%emt 0:00:03]} Bxd6 {[%emt 0:01:07]} 19. Qxd6 {[%emt 0:00:03]} Rad8 {[%emt 0:00:44]} 20. Qf4 {[%emt 0:02:50]} Rxd1 {[%emt 0:08:19]} 21. Bxd1 {[%emt 0:03:46]} Qd4 {[%emt 0:00:26]} 22. Bg4 {[%emt 0:02:42]} Qd7 {[%emt 0:00:29]} 23. Bxe6 {[%emt 0:00:16]} Qxe6 {[%emt 0:01:15]} 24. h3 {[%emt 0:04:30]} Rd8 {[%emt 0:06:22]} 25. Rf2 {[%emt 0:01:59]} Rd4 {[%emt 0:07:58]} 26. Qb8+ {[%emt 0:03:32]} Kg7 {[%emt 0:00:17]} 27. Qxb7 1/2-1/2